bitfinex/quotes_ETHUSD_20251019
["timestamp","ask_amount","ask_price","bid_price","bid_amount"]
[1760833883853,36.70733018,3890.4,3890.3,0.002]
[1760833884775,38.35749118,3890.4,3890.3,0.002]
[1760833885751,39.37849318,3890.4,3890.3,0.002]
[1760833885949,38.14099318,3890.4,3890.3,0.002]
[1760833886153,36.71879918,3890.4,3890.3,0.002]
[1760833886554,34.69792818,3890.4,3890.3,0.002]
[1760833886754,10.57386218,3890.4,3890.3,0.002]
[1760833886966,35.48863718,3890.4,3890.3,0.002]
[1760833888185,36.62587618,3890.4,3890.3,0.002]
[1760833888753,33.68652118,3890.4,3890.3,0.002]
[1760833888973,33.28322925,3890.4,3890.3,0.002]
[1760833889285,35.44040128,3890.4,3890.3,0.002]
[1760833890382,36.73439928,3890.4,3890.3,0.002]
[1760833891179,10.57387028,3890.4,3890.3,0.002]
[1760833891377,36.93399928,3890.4,3890.3,0.002]
[1760833892260,36.73747828,3890.4,3890.3,0.002]
[1760833893293,36.73747828,3890.4,3890.0,0.002]
[1760833893294,34.932228,3890.1,3890.0,0.002]
[1760833893708,35.168728,3890.1,3890.0,0.002]
[1760833897166,2.57080885,3889.9,3889.5,0.002]
[1760833897493,2.3616,3890.0,3888.5,0.2317]
[1760833897494,1.856,3889.6,3888.5,0.2317]
[1760833897662,27.45286834,3888.8,3888.5,0.2317]
[1760833898067,22.86980134,3888.8,3888.5,0.6998]
[1760833898478,25.84032734,3888.8,3888.5,0.6998]
[1760833898679,24.31521334,3888.8,3888.5,0.6998]
[1760833899115,21.48596084,3888.8,3888.5,0.6998]
[1760833899513,15.2731305,3888.8,3888.7,0.4718998]
[1760833899712,13.9559805,3888.8,3888.7,0.4718998]
[1760833900120,16.52746784,3888.8,3888.7,0.4718998]
[1760833900501,5.33653084,3888.8,3888.7,0.4718998]
[1760833900719,16.92145584,3888.8,3888.7,0.4718998]
[1760833900918,16.96628455,3888.8,3888.7,0.4718998]
[1760833901111,13.30139921,3888.8,3888.7,0.4718998]
[1760833901311,15.87288655,3888.8,3888.7,0.4718998]
[1760833901512,17.56286955,3888.8,3888.7,0.4718998]
[1760833902019,17.56286955,3888.8,3888.7,0.0037998]
[1760833902586,32.35555784,3888.8,3888.7,0.0037998]
[1760833903616,32.84478184,3888.8,3888.7,0.0037998]
[1760833904187,29.27302334,3888.8,3888.7,0.0037998]
[1760833904419,26.84884834,3888.8,3888.7,0.0037998]
[1760833904595,31.54341834,3888.8,3888.7,0.0037998]
[1760833905701,32.38302252,3888.8,3888.7,0.0037998]
[1760833905905,32.62262252,3888.8,3888.7,0.0037998]
[1760833906319,32.38302252,3888.8,3888.7,0.0037998]
[1760833906724,31.33887952,3888.8,3888.7,0.0037998]
[1760833907138,31.33887952,3888.8,3888.3,0.002]
[1760833907139,0.6336,3888.5,3888.3,0.002]
[1760833907338,38.54264633,3888.4,3888.3,0.002]
[1760833907539,38.33474033,3888.4,3888.3,0.002]
[1760833907749,39.13974033,3888.4,3888.3,0.4701]
[1760833907959,39.18457075,3888.4,3888.3,0.4701]
[1760833908312,39.58802647,3888.4,3888.3,0.4701]
[1760833908739,40.33786247,3888.4,3888.3,0.4701]
[1760833909048,40.33786247,3888.4,3888.3,0.002]
[1760833912816,10.33786247,3888.4,3888.3,0.002]
[1760833913022,40.33786247,3888.4,3888.3,0.002]
[1760833915448,30.9940166,3888.4,3888.3,0.4701]
[1760833915613,33.56576847,3888.4,3888.3,0.4701]
[1760833915809,20.4806986,3888.4,3888.3,0.4701]
[1760833916054,7.7661106,3888.4,3888.3,0.4701]
[1760833916253,16.4310796,3888.4,3888.3,0.4701]
[1760833916417,15.8620796,3888.4,3888.3,0.4701]
[1760833917240,15.45862388,3888.4,3888.3,0.4701]
[1760833917747,9.93440675,3888.4,3888.3,0.002]
[1760833917943,38.02756375,3888.4,3888.3,0.002]
[1760833918128,33.21211075,3888.4,3888.3,0.002]
[1760833918634,32.92924375,3888.4,3888.3,0.002]
[1760833918836,32.36739575,3888.4,3888.3,0.002]
[1760833919040,31.34360975,3888.4,3888.3,0.002]
[1760833919348,22.45549988,3888.4,3888.3,0.4701]
[1760833919930,21.60331088,3888.4,3888.3,0.4701]
[1760833920331,24.17506275,3888.4,3888.3,0.4701]
[1760833920642,24.17506275,3888.4,3888.3,0.002]
[1760833920837,39.93440675,3888.4,3888.3,0.002]
[1760833921037,39.60230775,3888.4,3888.3,0.002]
[1760833921451,2.57201646,3888.0,3887.9,0.002]
[1760833921619,38.16184092,3888.0,3887.9,0.002]
[1760833921824,34.66832392,3888.0,3887.9,0.002]
[1760833922055,34.71315884,3888.0,3887.9,0.002]
[1760833922421,33.45709784,3888.0,3887.9,0.002]
[1760833922620,33.07920084,3888.0,3887.9,0.002]
[1760833923055,33.46977884,3888.0,3887.9,0.002]
[1760833923666,33.70507884,3888.0,3887.9,0.002]
[1760833924154,33.15218784,3888.0,3887.9,0.002]
[1760833924320,33.55572064,3888.0,3887.9,0.002]
[1760833924719,33.32042064,3888.0,3887.9,0.002]
[1760833924953,34.46964964,3888.0,3887.9,0.002]
[1760833925428,34.42481472,3888.0,3887.9,0.002]
[1760833926022,10.29337372,3888.0,3887.9,0.002]
[1760833926228,35.16333472,3888.0,3887.9,0.002]
[1760833926628,35.39863472,3888.0,3887.9,0.002]
[1760833927254,35.33454372,3888.0,3887.9,0.002]
[1760833927660,35.37937986,3888.0,3887.9,0.002]
[1760833928236,10.57350986,3888.0,3887.9,0.002]
[1760833928444,35.36009686,3888.0,3887.9,0.002]
[1760833928856,34.99826172,3888.0,3887.9,0.002]
[1760833929236,34.99826172,3888.0,3886.2,0.226]
[1760833929237,2.3616,3887.1,3886.2,0.654]
[1760833929534,0.6336,3886.9,3886.8,0.2163]
[1760833929949,0.6336,3886.9,3886.8,0.1663]
[1760833930261,0.6336,3886.9,3886.8,0.5943]
[1760833931866,0.6336,3886.9,3886.8,0.12145151]
[1760833932164,0.6784487,3886.9,3886.8,0.12145151]
[1760833932332,0.6784487,3886.9,3886.8,0.54945151]
[1760833932953,2.4064487,3886.9,3886.8,0.54945151]
[1760833933134,2.4064487,3886.9,3886.8,0.12145151]
[1760833933335,0.6336,3886.7,3886.5,0.1214]
[1760833933534,7.31782446,3886.6,3886.5,0.1214]
[1760833933750,2.4896,3886.5,3886.0,0.224]
[1760833933948,7.307704,3886.0,3885.4,0.54945151]
[1760833934165,7.307704,3886.0,3884.9,0.87887621]
[1760833934166,2.3616,3885.4,3884.9,0.87887621]
[1760833934331,2.3616,3885.4,3884.9,0.82887621]
[1760833934835,7.31782446,3885.1,3885.0,0.428]
[1760833935231,7.31782446,3885.1,3884.9,0.82887621]
[1760833935232,16.16792657,3885.0,3884.9,0.82887621]
[1760833935781,16.54289894,3885.0,3884.9,0.82887621]
[1760833936283,2.40647237,3885.0,3884.9,0.82887621]
[1760833936585,9.58491594,3885.0,3884.9,0.82887621]
[1760833936780,7.01091337,3885.0,3884.9,0.82887621]
[1760833937195,9.91501594,3885.0,3884.9,0.82887621]
[1760833937379,35.31057494,3885.0,3884.9,0.82887621]
[1760833938056,34.71513794,3885.0,3884.9,0.82887621]
[1760833938259,5.31057494,3885.0,3884.9,0.82887621]
[1760833938449,31.54810294,3885.0,3884.9,0.83087621]
[1760833938885,28.929228,3885.0,3884.9,0.83087621]
[1760833939086,7.82498,3885.0,3884.9,0.83087621]
[1760833939273,12.78120446,3885.0,3884.9,0.83087621]
[1760833939463,14.31020746,3885.0,3884.9,0.83087621]
[1760833939671,10.14831046,3885.0,3884.9,0.83087621]
[1760833939866,9.11709246,3885.0,3884.9,0.83087621]
[1760833940070,6.68422446,3885.0,3884.9,1.25887621]
[1760833940276,0.4038352,3885.1,3884.9,1.25887621]
[1760833940476,0.4038352,3885.1,3885.0,0.428]
[1760833940686,0.4038352,3885.1,3884.9,0.83087621]
[1760833940687,0.6336,3885.0,3884.9,0.83087621]
[1760833941264,0.6336,3885.0,3884.9,1.25887621]
[1760833941896,0.6336,3885.0,3884.9,0.83087621]
[1760833942085,0.6336,3885.0,3884.9,1.25887621]
[1760833942258,0.67847466,3885.0,3884.9,1.25887621]
[1760833945088,0.67847466,3885.0,3884.9,0.83087621]
[1760833945285,3.25247723,3885.0,3884.9,0.83087621]
[1760833945504,21.78250762,3884.6,3884.5,0.002]
[1760833945818,26.73873208,3884.6,3884.5,0.002]
[1760833946114,27.21521403,3884.6,3884.5,0.002]
[1760833946411,18.81324003,3884.6,3884.5,0.002]
[1760833947026,34.83155403,3884.6,3884.5,0.002]
[1760833947312,34.45824303,3884.6,3884.5,0.002]
[1760833947700,34.76901727,3884.6,3884.5,0.002]
[1760833948091,35.95734827,3884.6,3884.5,0.002]
[1760833948610,35.91246632,3884.6,3884.5,0.002]
[1760833948789,7.31782446,3883.6,3883.5,0.1214]
[1760833949396,7.72174978,3883.6,3883.5,0.1214]
[1760833950326,7.72174978,3883.6,3883.5,0.5494]
[1760833950692,7.72174978,3883.6,3883.5,0.4994]
[1760833951334,7.72174978,3883.6,3883.5,0.0714]
[1760833951509,7.72174978,3883.6,3883.5,0.4994]
[1760833951711,7.76661365,3883.6,3883.5,0.0714]
[1760833952411,7.76661365,3883.6,3883.2,0.428]
[1760833952412,2.3616,3883.5,3883.2,0.428]
[1760833952608,2.3616,3883.5,3883.3,0.428]
[1760833952808,2.3616,3883.5,3883.1,0.428]
[1760833953010,2.3616,3883.5,3883.2,0.428]
[1760833953398,2.3616,3883.5,3883.0,0.224]
[1760833953602,2.3616,3883.5,3883.3,0.428]
[1760833953950,0.44878919,3883.6,3883.4,0.428]
[1760833954107,0.6336,3883.5,3883.0,0.224]
[1760833954310,0.6336,3883.5,3883.1,0.428]
[1760833955423,0.128,3883.1,3883.0,0.224]
[1760833956015,0.04488666,3883.1,3883.0,0.6849]
[1760833956532,0.04488666,3883.1,3883.0,1.45949433]
[1760833956737,0.04488666,3883.1,3883.0,1.86298795]
[1760833961826,0.04488666,3883.1,3883.0,1.45949433]
[1760833965859,0.04488666,3883.1,3883.0,4.06057596]
[1760833966067,0.128,3883.4,3883.3,2.5751294]
[1760833966265,0.128,3883.4,3883.3,0.4609]
[1760833966477,0.128,3883.4,3883.3,0.86436783]
[1760833966682,0.128,3883.4,3883.3,0.9322]
[1760833967177,0.128,3883.4,3883.3,0.4713]
[1760833970331,0.128,3883.4,3883.1,0.4609]
[1760833970536,0.6914,3883.8,3883.1,0.4609]
[1760833970736,0.6914,3883.8,3883.0,0.224]
[1760833970958,0.6914,3883.8,3883.0,0.55013825]
[1760833971192,0.6914,3883.8,3882.7,0.001]
[1760833971193,0.128,3883.0,3882.7,0.001]
[1760833971391,0.128,3882.8,3882.7,0.001]
[1760833971676,0.128,3882.8,3882.7,0.4619]
[1760833973260,0.128,3882.8,3882.7,0.001]
[1760833973870,0.5993,3882.8,3882.7,0.001]
[1760833974170,0.128,3882.8,3882.7,0.001]
[1760833979642,0.5933,3882.8,3882.7,0.001]
[1760833981361,0.128,3882.8,3882.7,0.001]
[1760833981786,0.40400078,3883.3,3882.7,0.4619]
[1760833981999,0.40400078,3883.3,3882.8,0.02575461]
[1760833982166,0.40400078,3883.3,3882.8,0.4609]
[1760833982366,0.40400078,3883.3,3883.2,0.224]
[1760833982575,0.40400078,3883.3,3883.2,0.6849]
[1760833982791,0.40400078,3883.3,3882.8,3.03634611]
[1760833983068,0.128,3882.8,3882.7,0.001]
[1760833983390,0.128,3882.8,3882.7,2.57650759]
[1760833983592,0.128,3882.8,3882.7,0.4619]
[1760833983898,0.128,3882.8,3882.7,0.76564789]
[1760833985006,0.128,3882.8,3882.7,3.34117522]
[1760833986905,0.17288587,3883.1,3882.8,2.57540479]
[1760833987271,0.17288587,3883.1,3882.9,0.4334]
[1760833987477,0.17288587,3883.1,3883.0,0.33135527]
[1760833987804,0.17288587,3883.1,3882.7,0.30474789]
[1760833988006,0.128,3882.8,3882.7,0.30474789]
[1760833988306,0.128,3882.8,3882.7,2.88027522]
[1760833988515,0.128,3882.8,3882.7,3.31367522]
[1760833989624,0.128,3882.8,3882.7,0.73814789]
[1760833990094,0.128,3882.8,3882.7,3.31367522]
[1760833991981,0.128,3883.3,3883.2,2.57516543]
[1760833992181,0.128,3883.3,3883.2,3.52361545]
[1760833993594,0.128,3883.3,3883.2,0.51505002]
[1760833993795,0.128,3883.3,3882.7,0.30474789]
[1760833993991,0.4568,3883.3,3882.7,0.001]
[1760833994901,1.957,3883.9,3882.7,0.46015527]
[1760833994902,0.229,3883.9,3882.7,0.46015527]
[1760833995114,0.4568,3884.2,3883.2,2.7991813]
[1760833995315,0.4568,3884.2,3883.2,3.2325813]
[1760833995495,0.859,3885.0,3882.7,0.001]
[1760833995496,5.41302446,3884.1,3882.7,0.001]
[1760833995817,5.41302446,3884.1,3882.8,0.4334]
[1760833996034,5.41302446,3884.1,3882.7,0.001]
[1760833996035,2.3616,3884.0,3882.7,0.001]
[1760833996207,2.3616,3884.0,3882.9,2.57534522]
[1760833996406,0.2254,3885.0,3883.9,0.224]
[1760833996601,0.4642,3884.9,3883.9,0.224]
[1760833996801,0.4642,3884.9,3882.9,0.561109]
[1760833996802,0.04487862,3884.8,3883.4,0.4334]
[1760833997006,0.4642,3884.7,3883.4,3.7828852]
[1760833997214,0.4642,3884.6,3883.5,2.57498336]
[1760833997537,0.002,3883.9,3883.6,0.40068057]
[1760833997833,0.002,3883.9,3883.4,3.78287293]
[1760833998030,0.002,3883.9,3883.5,2.57497701]
[1760833998631,0.002,3883.9,3883.6,2.57491739]
[1760833998825,0.002,3883.9,3883.6,3.00831739]
[1760833999006,0.002,3883.9,3883.8,2.57479787]
[1760833999202,0.002,3883.9,3883.8,2.83485252]
[1760833999439,0.002,3883.9,3883.8,3.26825252]
[1760834002442,0.002,3883.9,3883.8,5.68585252]
[1760834003318,0.002,3883.9,3883.8,0.94965465]
[1760834003537,0.002,3883.9,3883.8,0.6896]
[1760834003935,0.002,3883.9,3883.8,3.26439787]
[1760834005156,0.002,3883.9,3883.8,0.6896]
[1760834005464,0.3535,3883.9,3883.1,1.728]
[1760834005768,0.128,3883.5,3883.4,2.57506308]
[1760834006846,0.128,3883.5,3883.3,2.57512036]
[1760834007543,0.128,3883.5,3883.4,2.57506308]
[1760834011379,0.002,3883.9,3883.8,2.57479787]
[1760834011675,0.002,3883.9,3883.8,3.52316595]
[1760834014695,0.002,3883.9,3883.8,3.65116595]
[1760834015679,0.002,3883.9,3883.8,3.21776595]
[1760834016571,0.002,3883.9,3883.8,3.68786595]
[1760834023684,0.002,3883.9,3883.8,3.21776595]
[1760834025828,0.002,3883.9,3883.8,8.79783838]
[1760834026036,0.002,3883.9,3883.8,5.07376595]
[1760834026733,0.002,3883.9,3883.8,3.34576595]
[1760834027743,0.002,3883.9,3883.8,3.21776595]
[1760834027945,0.002,3883.9,3883.8,0.64296808]
[1760834028232,0.002,3883.9,3883.8,0.128]
[1760834028438,0.002,3883.9,3883.8,2.70279787]
[1760834030634,0.002,3883.9,3883.8,2.57479787]
[1760834034775,0.002,3883.9,3883.7,2.57484916]
[1760834035267,0.002,3883.9,3883.8,2.57479787]
[1760834035464,0.002,3883.9,3883.7,2.57484977]
[1760834035639,0.002,3883.9,3883.8,2.57479787]
[1760834036776,0.002,3883.9,3883.7,3.13339215]
[1760834036924,0.4366,3883.9,3883.7,3.13339215]
[1760834037124,0.4366,3883.9,3883.8,2.57479787]
[1760834037868,0.002,3883.9,3883.8,2.57479787]
[1760834039570,0.002,3883.9,3883.8,3.23619358]
[1760834041497,0.4366,3883.9,3883.8,0.66139571]
[1760834041894,0.4366,3883.9,3883.8,3.23619358]
[1760834042488,0.002,3883.9,3883.8,3.23619358]
[1760834044196,0.002,3883.9,3883.6,0.128]
[1760834044395,0.4346,3883.8,3883.5,2.57597826]
[1760834044696,0.458,3883.7,3883.6,2.57492142]
[1760834046916,0.586,3883.7,3883.6,2.57492142]
[1760834047112,0.586,3883.7,3883.5,0.001]
[1760834047774,0.454,3883.6,3883.5,0.001]
[1760834048974,0.128,3883.7,3883.6,2.57493047]
[1760834049374,0.582,3883.7,3883.6,2.57493047]
[1760834049578,0.582,3883.7,3883.5,2.57597965]
[1760834050558,0.128,3883.7,3883.5,2.57597965]
[1760834051095,0.128,3883.7,3883.6,2.57493047]
[1760834051291,0.6745,3883.9,3883.7,2.57481932]
[1760834051292,0.128,3883.8,3883.7,2.57481932]
[1760834051499,0.128,3883.8,3883.6,3.09002859]
[1760834052167,0.17287794,3883.8,3883.6,3.09002859]
[1760834052569,0.17287794,3883.8,3883.7,2.57486417]
[1760834052894,0.17287794,3883.8,3883.7,3.18640804]
[1760834053404,0.17287794,3883.8,3883.7,1.06104387]
[1760834053704,0.17287794,3883.8,3883.7,2.57486417]
[1760834055098,0.17287794,3883.8,3883.6,2.57490991]
[1760834056155,0.17287794,3883.8,3883.7,2.57486417]
[1760834056330,0.17287794,3883.8,3883.5,0.001]
[1760834056331,0.17287794,3883.8,3883.6,2.57492161]
[1760834056531,0.17287794,3883.8,3883.5,0.001]
[1760834056532,0.6695,3883.7,3883.5,0.001]
[1760834057064,0.454,3883.6,3883.5,0.001]
[1760834064088,0.85790129,3883.6,3883.5,0.001]
[1760834064263,0.454,3883.6,3883.5,0.001]
[1760834068570,1.0876,3883.6,3883.5,0.001]
[1760834069412,1.4915413,3883.6,3883.5,0.001]
[1760834069993,3.2195413,3883.6,3883.5,0.001]
[1760834071308,5.79447177,3883.6,3883.5,0.001]
[1760834071518,5.79647177,3883.6,3883.5,0.001]
[1760834072282,3.2215413,3883.6,3883.5,0.001]
[1760834072496,3.2664316,3883.6,3883.5,0.001]
[1760834074611,0.4508316,3883.6,3883.5,0.001]
[1760834074932,0.0468903,3883.6,3883.5,0.001]
[1760834076206,0.0468903,3883.6,3883.5,0.4621]
[1760834078434,0.0468903,3883.6,3883.5,0.001]
[1760834078939,0.002,3883.6,3883.5,0.001]
[1760834079515,0.002,3883.6,3883.5,0.4621]
[1760834079717,0.002,3883.6,3883.5,0.76582598]
[1760834080816,0.002,3883.6,3883.5,3.36657272]
[1760834081045,0.002,3883.6,3883.5,3.34082276]
[1760834081242,0.002,3883.6,3883.5,3.36657272]
[1760834081608,0.002,3883.6,3883.5,0.79157594]
[1760834081841,0.002,3883.6,3883.5,0.76582598]
[1760834082528,0.002,3883.6,3883.5,3.34082276]
[1760834083246,0.002,3883.6,3883.5,3.49457272]
[1760834084437,0.002,3883.6,3883.5,5.22257272]
[1760834084641,0.002,3883.6,3883.5,5.19682276]
[1760834087108,0.002,3883.6,3883.5,5.83042276]
[1760834091060,0.002,3883.6,3883.5,5.19682276]
[1760834093249,0.002,3883.6,3883.5,5.30005562]
[1760834094321,0.4514,3883.6,3883.5,0.40795884]
[1760834094515,0.4514,3883.6,3883.5,0.10423286]
[1760834098343,0.4514,3883.6,3883.5,0.001]
[1760834101069,0.85531629,3883.6,3883.5,0.001]
[1760834101567,0.90020111,3883.6,3883.5,0.001]
[1760834104477,0.49628482,3883.6,3883.5,0.001]
[1760834104629,0.04688482,3883.6,3883.5,0.001]
[1760834104828,0.49628482,3883.6,3883.5,0.001]
[1760834108108,0.90020775,3883.6,3883.5,0.001]
[1760834108771,1.53380775,3883.6,3883.5,0.001]
[1760834109279,3.21692293,3883.6,3883.5,0.001]
[1760834110605,0.40592293,3883.6,3883.5,0.001]
[1760834111876,0.45080816,3883.6,3883.5,0.001]
[1760834113033,0.89980816,3883.6,3883.5,0.001]
[1760834114120,0.49588523,3883.6,3883.5,0.001]
[1760834114700,5.4324157,3883.6,3883.5,0.001]
[1760834115520,2.85748523,3883.6,3883.5,0.001]
[1760834116323,5.4324157,3883.6,3883.5,0.001]
[1760834116525,8.7495847,3883.6,3883.5,0.001]
[1760834116827,16.3921497,3883.6,3883.5,0.001]
[1760834117824,18.0430577,3883.6,3883.5,0.001]
[1760834118323,18.77505877,3883.6,3883.5,0.001]
[1760834118690,23.78672877,3883.6,3883.5,0.001]
[1760834118915,23.74184354,3883.6,3883.5,0.001]
[1760834120017,23.94898554,3883.6,3883.5,0.001]
[1760834120613,23.94119315,3883.6,3883.5,0.001]
[1760834120813,23.94119315,3883.6,3883.1,0.001]
[1760834120814,34.93679571,3883.2,3883.1,0.001]
[1760834121119,26.27548317,3883.2,3883.1,0.001]
[1760834121313,26.67954367,3883.2,3883.1,0.001]
[1760834121633,26.72444153,3883.2,3883.1,0.001]
[1760834122022,26.63882453,3883.2,3883.1,0.001]
[1760834122708,25.93012553,3883.2,3883.1,0.001]
[1760834122907,27.24809053,3883.2,3883.1,0.001]
[1760834123541,26.01059053,3883.2,3883.1,0.001]
[1760834123943,24.40832453,3883.2,3883.1,0.001]
[1760834124127,25.40032453,3883.2,3883.1,0.001]
[1760834124437,24.67616353,3883.2,3883.1,0.001]
[1760834124642,23.68416353,3883.2,3883.1,0.001]
[1760834125255,24.67616353,3883.2,3883.1,0.001]
[1760834126347,20.19460853,3883.2,3883.1,0.001]
[1760834127332,21.32097253,3883.2,3883.1,0.001]
[1760834127656,20.87201417,3883.2,3883.1,0.001]
[1760834128330,20.83901417,3883.2,3883.1,0.001]
[1760834128852,19.84701417,3883.2,3883.1,0.001]
[1760834129350,9.25942017,3883.2,3883.1,0.001]
[1760834129848,9.89302017,3883.2,3883.1,0.001]
[1760834130354,0.002,3883.6,3883.1,0.6921]
[1760834130650,2.3616,3883.3,3883.2,0.4671]
[1760834130855,0.6336,3883.2,3883.1,0.225]
[1760834131304,4.93679571,3883.2,3883.1,0.001]
[1760834131840,9.46946171,3883.2,3883.1,0.001]
[1760834132045,9.87347429,3883.2,3883.1,0.001]
[1760834132852,15.71230329,3883.2,3883.1,0.001]
[1760834133058,14.03935729,3883.2,3883.1,0.001]
[1760834133423,14.08425308,3883.2,3883.1,0.001]
[1760834133840,5.82320408,3883.2,3883.1,0.001]
[1760834134046,16.51025308,3883.2,3883.1,0.001]
[1760834134451,2.81050837,3883.2,3883.1,0.001]
[1760834134653,5.38570408,3883.2,3883.1,0.001]
[1760834134874,2.81050837,3883.2,3883.1,0.001]
[1760834135067,2.40649579,3883.2,3883.1,0.6756]
[1760834135457,0.67849579,3883.2,3883.1,0.6756]
[1760834136835,0.67849579,3883.2,3883.1,0.001]
[1760834137043,14.65210241,3883.2,3883.1,0.001]
[1760834137374,10.75388241,3883.2,3883.1,0.001]
[1760834137842,10.35770461,3883.2,3883.1,0.001]
[1760834138043,11.95366061,3883.2,3883.1,0.001]
[1760834138966,5.82900461,3883.2,3883.1,0.001]
[1760834139175,10.96280761,3883.2,3883.1,0.001]
[1760834139740,10.51950761,3883.2,3883.1,0.001]
[1760834139940,7.83989061,3883.2,3883.1,0.001]
[1760834141676,1.0825089,3883.2,3883.1,0.001]
[1760834141973,1.0825089,3883.2,3883.1,0.4614]
[1760834142274,2.8105089,3883.2,3883.1,0.4614]
[1760834143080,2.76561311,3883.2,3883.1,0.4614]
[1760834143791,2.76561311,3883.2,3883.1,0.001]
[1760834143942,5.34080882,3883.2,3883.1,0.001]
[1760834144138,5.78410882,3883.2,3883.1,0.001]
[1760834144466,12.25564971,3883.2,3883.1,0.001]
[1760834144661,13.00054071,3883.2,3883.1,0.001]
[1760834144862,11.21802871,3883.2,3883.1,0.001]
[1760834145579,11.26292628,3883.2,3883.1,0.001]
[1760834145786,5.42499328,3883.2,3883.1,0.001]
[1760834145951,12.26036828,3883.2,3883.1,0.001]
[1760834147387,12.66438444,3883.2,3883.1,0.001]
[1760834148082,8.23945544,3883.2,3883.1,0.001]
[1760834148284,8.68275544,3883.2,3883.1,0.001]
[1760834148955,28.66618344,3883.2,3883.1,0.001]
[1760834149150,22.16697044,3883.2,3883.1,0.001]
[1760834149477,21.85981644,3883.2,3883.1,0.001]
[1760834149884,5.78411187,3883.2,3883.1,0.001]
[1760834150115,22.00150987,3883.2,3883.1,0.001]
[1760834150518,20.63221887,3883.2,3883.1,0.001]
[1760834151019,21.16201987,3883.2,3883.1,0.001]
[1760834152004,21.24269687,3883.2,3883.1,0.001]
[1760834152331,21.28759615,3883.2,3883.1,0.001]
[1760834152922,19.57887015,3883.2,3883.1,0.001]
[1760834153123,18.02719815,3883.2,3883.1,0.001]
[1760834153420,16.78969815,3883.2,3883.1,0.001]
[1760834154018,18.52243115,3883.2,3883.1,0.001]
[1760834154201,17.28493115,3883.2,3883.1,0.001]
[1760834154991,19.07758015,3883.2,3883.1,0.001]
[1760834156025,5.82901115,3883.2,3883.1,0.001]
[1760834156228,20.31508015,3883.2,3883.1,0.001]
[1760834156629,19.07758015,3883.2,3883.1,0.001]
[1760834157133,20.31508015,3883.2,3883.1,0.001]
[1760834157337,21.0486789,3883.2,3883.1,0.001]
[1760834157540,20.6053789,3883.2,3883.1,0.001]
[1760834157720,11.68416699,3883.2,3883.1,0.001]
[1760834158324,14.77636099,3883.2,3883.1,0.001]
[1760834158642,13.35736099,3883.2,3883.1,0.001]
[1760834159339,14.27416599,3883.2,3883.1,0.001]
[1760834159539,13.49971699,3883.2,3883.1,0.001]
[1760834160244,13.90373637,3883.2,3883.1,0.001]
[1760834160450,15.58351237,3883.2,3883.1,0.001]
[1760834161303,6.96189166,3883.2,3883.1,0.6756]
[1760834161609,10.71598953,3883.2,3883.1,0.001]
[1760834161802,11.52198044,3883.2,3883.1,0.001]
[1760834162602,15.69736044,3883.2,3883.1,0.001]
[1760834163026,15.17950944,3883.2,3883.1,0.001]
[1760834163733,13.67680144,3883.2,3883.1,0.001]
[1760834164031,10.74687037,3883.2,3883.1,0.001]
[1760834164233,10.34285099,3883.2,3883.1,0.001]
[1760834164641,11.01090999,3883.2,3883.1,0.001]
[1760834165026,10.33238199,3883.2,3883.1,0.001]
[1760834166106,7.93725499,3883.2,3883.1,0.001]
[1760834166539,4.98169499,3883.2,3883.1,0.001]
[1760834166741,4.34809499,3883.2,3883.1,0.6736]
[1760834167121,4.98169499,3883.2,3883.1,0.6736]
[1760834167418,0.44889814,3883.2,3883.1,0.6736]
[1760834168014,0.40399886,3883.2,3883.1,0.6736]
[1760834168411,0.40399886,3883.2,3883.1,0.2248]
[1760834168646,3.20873916,3883.3,3883.1,0.001]
[1760834169012,3.20879571,3883.2,3883.1,0.001]
[1760834169213,0.6336,3883.2,3883.1,0.001]
[1760834169527,3.20879571,3883.2,3883.1,0.001]
[1760834169721,4.93679571,3883.2,3883.1,0.001]
[1760834169918,2.3616,3883.2,3883.1,0.6891]
[1760834172251,4.93679571,3883.2,3883.1,0.001]
[1760834172453,10.46808271,3883.2,3883.1,0.001]
[1760834172618,9.47608271,3883.2,3883.1,0.001]
[1760834173123,7.18853171,3883.2,3883.1,0.001]
[1760834173336,4.613336,3883.2,3883.1,0.001]
[1760834173566,7.18853171,3883.2,3883.1,0.001]
[1760834174123,2.3616,3883.2,3883.1,0.001]
[1760834177121,5.277284,3883.2,3883.1,0.001]
[1760834177840,7.85247971,3883.2,3883.1,0.001]
[1760834178057,19.463706,3882.8,3882.7,0.001]
[1760834178360,24.41993046,3882.8,3882.7,0.001]
[1760834178676,24.64771699,3882.8,3882.7,0.001]
[1760834178842,24.60281546,3882.8,3882.7,0.001]
[1760834179176,24.72941971,3882.8,3882.7,0.001]
[1760834179331,24.60281546,3882.8,3882.7,0.001]
[1760834181863,24.64771702,3882.8,3882.7,0.001]
[1760834182062,24.77445302,3882.8,3882.7,0.001]
[1760834182362,22.20270681,3882.4,3882.3,0.001]
[1760834182529,21.67435581,3882.4,3882.3,0.001]
[1760834182724,22.11555581,3882.4,3882.3,0.001]
[1760834182930,22.51967781,3882.4,3882.3,0.001]
[1760834183127,22.5645854,3882.4,3882.3,0.001]
[1760834184028,40.7837804,3882.4,3882.3,0.001]
[1760834184228,1.728,3882.2,3880.1,0.149]
[1760834184441,4.95622446,3880.9,3880.2,0.4605]
[1760834184628,1.728,3880.8,3880.2,0.4605]
[1760834184832,1.77291698,3880.8,3880.2,0.4605]
[1760834185279,0.04491698,3880.8,3880.2,0.4605]
[1760834186429,0.04491698,3880.8,3880.2,0.80194745]
[1760834186631,0.04491698,3880.8,3880.2,0.4605]